Cogmind - Beta 16 @@@ ROGUE MODE // 2025.11.20 @ 09:17:22 Player: justinkang1 Result: Destroyed by G-34 Mercenary with Small Laser Performance ------------- Evolutions (1) 500 Regions Visited (2) 400 Robots Destroyed (40) 200 Value Destroyed (754) 754 Prototype IDs (1) 20 Alien Tech Used (0) 0 Bonus (0) 0 TOTAL SCORE: 1874 Bonus ------- None Cogmind --------- Core Integrity 0/400 Matter 69/300 Energy 100/100 System Corruption 0% Temperature Cool (6) Movement Rolling (115) Ox1 Location -9/Materials Parts ------- > --- POWER (1) -------- (None) > --- PROPULSION (3) --- Compact Wheel > --- UTILITY (3) ------ Large Storage Unit > --- WEAPON (2) ------- (None) > --- INVENTORY (15) --- Light Ion Engine Improved Ion Engine Medium Storage Unit Signal Interpreter Power Shielding Improved Assault Rifle Grenade Launcher Mining Laser Peak State ------------ > --- POWER ------------ Improved Ion Engine > --- PROPULSION ------- Improved Aluminum Leg Improved Aluminum Leg Improved Aluminum Leg > --- UTILITY ---------- Large Storage Unit Structural Scanner Improved Terrain Scanner > --- WEAPON ----------- Heavy Assault Rifle Improved Assault Rifle > --- INVENTORY -------- Improved Ion Engine Improved Ion Engine Improved Ion Engine Compact Wheel Medium Storage Unit Power Shielding Heavy Assault Rifle Grenade Launcher Grenade Launcher Mining Laser [Rating: 19] Favorites ----------- Power Light Ion Engine Engine Light Ion Engine Propulsion Aluminum Leg Leg Aluminum Leg Wheel Compact Wheel Utility Improved Terrain Scanner Device Improved Terrain Scanner Storage Large Storage Unit Weapon Assault Rifle Energy Gun Medium Laser Ballistic Gun Assault Rifle Launcher Grenade Launcher Special Weapon Mining Laser Build | -11 -10 -9 ------- Run | Yrd Mat Mat Slots Evolved 2 | . . 2 Power . | . . . Propulsion 1 | . . 1 Utility 1 | . . 1 Weapon . | . . . Parts Attached 29 | 7 10 12 Power 5 | 1 1 3 Engine 5 | 1 1 3 Core . | . . . Reactor . | . . . Propulsion 9 | 2 3 4 Treads . | . . . Leg 8 | 2 3 3 Wheel 1 | . . 1 Hover . | . . . Flight . | . . . Utility 6 | 1 4 1 Device 3 | . 3 . Storage 3 | 1 1 1 Processor . | . . . Hackware . | . . . Protection . | . . . Artifact . | . . . Weapon 9 | 3 2 4 Energy Gun 1 | 1 . . Energy Cannon . | . . . Ballistic Gun 5 | 1 2 2 Ballistic Cannon . | . . . Launcher 2 | . . 2 Special Weapon 1 | 1 . . Impact Weapon . | . . . Slashing Weapon . | . . . Piercing Weapon . | . . . Special Melee Weapon . | . . . Unidentified Prototypes 1 | . . 1 Parts Lost 16 | . 1 15 Power 3 | . . 3 Propulsion 6 | . 1 5 Utility 3 | . . 3 Weapon 4 | . . 4 Highest Loss Streak 9 | . 1 9 To Critical Strikes . | . . . Average Backups 8 | 3 8 9 Power 2 | . 1 2 Propulsion 1 | 1 1 . Utility 2 | . 1 2 Weapon 3 | 1 3 3 Tool/Special . | . . . Unused Backups 8 | . 3 5 Power 3 | . . 3 Propulsion 1 | . 1 . Utility 3 | . 1 2 Weapon 1 | . 1 . Tool/Special . | . . . Average Slot Usage (%) 91 | . 95 87 Engine 12 | . 14 10 Leg 27 | . 27 27 Device 15 | . 10 19 Storage 12 | . 14 11 Energy Gun 6 | . 13 . Ballistic Gun 15 | . 14 16 Launcher 1 | . . 2 Peak Build Rating 19 | 6 12 19 Average Rating 11 | 4 8 15 On Entrance 5 | . 5 12 Avg Prop Armor Cover (%) . | . . . Naked Turns . | . . . Heaviest Build 35 | 12 20 35 Greatest Support 39 | 20 26 39 Greatest Overweight (x) 8 | 3 1 8 Average Overweight (x) . | . . . Largest Inventory Capacity 15 | 8 10 15 Average Capacity 11 | 7 8 14 Most Carried 11 | 6 10 11 Average Carried 8 | 3 8 9 Final Capacity 15 | 8 10 15 Final Carried 10 | 6 10 8 Class Distribution -------------------- 100% | Mutant Dominant Class ---------------- Mutant | -10/Materials Mutant | -9/Materials Resources | -11 -10 -9 ----------- Run | Yrd Mat Mat Matter Collected 704 | 283 164 257 Remotely . | . . . Salvage Created 885 | 82 284 519 Parts 73 | 3 20 50 Haulers Intercepted 1 | . . 1 Recyclers Shooed 1 | . 1 . Parts Field Recycled . | . . . Retrieved Matter . | . . . Parts Self-Destructed . | . . . Prevented . | . . . Parts Restored . | . . . Kills | -11 -10 -9 ------- Run | Yrd Mat Mat Combat Hostiles Destroyed 27 | . 9 18 Guns 20 | . 9 11 AOE 7 | . . 7 Classes Destroyed 9 | 2 4 3 Worker 4 | . 1 3 Builder 4 | . . 4 Tunneler 2 | 1 1 . Hauler 1 | . . 1 Recycler 1 | 1 . . Operator 1 | . 1 . Swarmer 16 | . 6 10 Grunt 9 | . 3 6 Sentry 2 | . . 2 Best Kill Streak 10 | 2 3 10 Combat Bots Only 6 | . 3 6 Max Kills in Single Turn 6 | 1 1 6 Gunslinging . | . . . Exploded 3 | . . 3 Melee . | . . . Uniques/NPCs Destroyed . | . . . Combat | -11 -10 -9 -------- Run | Yrd Mat Mat Hostile Shots Fired 270 | . 61 209 Missed 78 | . 16 62 Hits 192 | . 45 147 Projectile 192 | . 45 147 Critical Strikes 5 | . . 5 Damage Taken 2137 | . 477 1660 Core 480 | . 78 402 Absorbed by Shields . | . . . Regen/Repaired (Parts) 7 | . 7 . Core Remaining (%) 84 | 100 68 . Volleys Fired 95 | 7 39 49 Largest 2 | 2 2 2 Hottest 100 | 100 70 53 Shots Fired 169 | 13 78 78 Gun 159 | 12 78 69 Cannon . | . . . Launcher 9 | . . 9 Special 1 | 1 . . Kinetic 115 | 6 40 69 Thermal 45 | 7 38 . Explosive 9 | . . 9 Electromagnetic . | . . . Robot Hit Streak 9 | 6 8 9 Robot Miss Streak 10 | 2 10 3 Penetration Max . | . . . Secondary Targets 3 | . . 3 Max Gunslinging Chain 1 | . . 1 Shots Hit Robots 99 | 8 40 51 Core Hits 58 | 3 18 37 Critical Kills . | . . . Critical Parts Destroyed . | . . . Critical Strikes 4 | . 4 . Burn 4 | . 4 . Melee Attacks . | . . . Impact . | . . . Slashing . | . . . Piercing . | . . . Sneak Attacks . | . . . Combat Hostiles . | . . . Follow-up Attacks . | . . . Damage Inflicted 2227 | 109 506 1612 Guns 1283 | 104 506 673 Cannons . | . . . Explosions 939 | . . 939 Melee . | . . . Ramming 5 | 5 . . Kinetic 934 | 42 219 673 Thermal 400 | 62 287 51 Explosive 866 | . . 866 Electromagnetic 22 | . . 22 Impact . | . . . Slashing . | . . . Piercing . | . . . Highest Corruption 3 | . 3 . Average Corruption 2 | . 2 . Corruption Purged . | . . . Corruption Blocked . | . . . Effects 5 | . 5 . Matter Fused 2 | . 2 . Heat Flow Errors 1 | . 1 . Energy Discharges 1 | . 1 . Data Loss (minor) 1 | . 1 . Overload Shots . | . . . Overflow Damage 3 | . . 3 Projectiles . | . . . Explosions 3 | . . 3 Melee . | . . . Knockbacks . | . . . Impact . | . . . Kinetic . | . . . Secondary . | . . . Self-Inflicted Damage 138 | . . 138 Shots 4 | . . 4 Rammed . | . . . Targets Rammed 2 | 2 . . Kicked 2 | 2 . . Crushed . | . . . Highest Temperature 139 | 54 139 59 Average Temperature 30 | 24 31 32 Received Heat Transfer 723 | . 183 540 Siege Activations . | . . . Martial Activations . | . . . Shielding Activations . | . . . Robots Disrupted . | . . . Combat Hostiles . | . . . Robots Corrupted . | . . . Combat Hostiles . | . . . Parts Fried . | . . . Impact Corruptions . | . . . Robots Melted . | . . . Combat Hostiles . | . . . Parts Melted 3 | . 3 . Heat Transferred 1432 | 185 1147 100 Parts Sabotaged . | . . . Parts Stolen . | . . . Parts Stripped . | . . . Power Chain Reactions 3 | . . 3 Alert | -11 -10 -9 ------- Run | Yrd Mat Mat Maximum Alert Level 1 | . . 1 Low Security (%) 85 | 100 100 67 Level 1 14 | . . 32 Level 2 . | . . . Level 3 . | . . . Level 4 . | . . . Level 5 . | . . . High Security . | . . . Max Security . | . . . Peak Influence 389 | 10 76 389 Initial 17 | . . 17 Average 68 | . 23 130 Influence Increases 1048 | 10 312 726 Destroy 0b10 Robot/C 540 | . 180 360 Destroy 0b10 Robot/NC 65 | 10 15 40 Destroy Leader 102 | . 40 62 Disable Machine 165 | . . 165 Destroy Structure 86 | . 2 84 Partial Spotted 15 | . 15 . Lose Combat Pursuer 75 | . 60 15 Influence Decreases 713 | 10 269 434 Entered New Map 26 | . . 26 Time Decay 530 | 10 262 258 Lost Part 157 | . 7 150 Squads Dispatched 1 | . 1 . Investigation . | . . . Extermination . | . . . Reinforcement 1 | . 1 . Assault . | . . . Garrison . | . . . Intercept . | . . . Searches Triggered . | . . . Construction Impeded . | . . . Haulers Reinforced . | . . . Active Scanning Responses . | . . . Cargo Convoy Interrupts . | . . . Stealth | -11 -10 -9 --------- Run | Yrd Mat Mat Distress Signals 7 | . 2 5 Communications Jammed . | . . . Distress Signals . | . . . Times Spotted 47 | . 16 31 Peak Tracking Total 9 | . 4 9 Tactical Retreats 4 | . 3 1 Traps | -11 -10 -9 ------- Run | Yrd Mat Mat Traps Triggered 2 | . 2 . Indirectly . | . . . Trap Hack Attempts . | . . . Triggered . | . . . Disarmed . | . . . Reprogrammed . | . . . Reused . | . . . Traps Extracted . | . . . Installed . | . . . Triggered . | . . . Machines | -11 -10 -9 ---------- Run | Yrd Mat Mat Machines Disabled 11 | . . 11 Max in Single Turn 6 | . . 6 Machines Repaired . | . . . Machines Dismantled . | . . . Machines Sabotaged . | . . . Overloaded Fab Kills . | . . . Hacking | -11 -10 -9 --------- Run | Yrd Mat Mat Machines Accessed 1 | . 1 . Terminals . | . . . Fabricators . | . . . Repair Stations 1 | . 1 . Recycling Units . | . . . Scanalyzers . | . . . Garrison Access . | . . . Total Hacks 3 | . 3 . Successful 2 | . 2 . Failed 1 | . 1 . Catastrophic . | . . . Database Lockouts . | . . . Manual . | . . . Terminals . | . . . Fabricators . | . . . Repair Stations 3 | . 3 . Recycling Units . | . . . Scanalyzers . | . . . Garrison Access . | . . . Terminal Hacks . | . . . Fabricator Hacks . | . . . Repair Station Hacks 2 | . 2 . Scan Component 1 | . 1 . Repair 1 | . 1 . Recycling Unit Hacks . | . . . Scanalyzer . | . . . Garrison Access Hacks . | . . . Unauthorized Hacks . | . . . Terminals . | . . . Fabricators . | . . . Repair Stations . | . . . Recycling Units . | . . . Scanalyzers . | . . . Garrison Access . | . . . Data Cores Recovered . | . . . Used . | . . . Hacking Detections . | . . . Full Trace Events . | . . . Feedback Events . | . . . Feedback Blocked . | . . . Robot Schematics Acquired . | . . . Robots Built . | . . . Authchips . | . . . Time . | . . . Total Robot Build Rating . | . . . Part Schematics Acquired . | . . . Parts Built . | . . . Authchips . | . . . Time . | . . . Total Part Build Rating . | . . . Part Studies Acquired . | . . . Parts Repaired 1 | . 1 . Time 26 | . 26 . Parts Recycled . | . . . Recycled Matter . | . . . Retrieved Matter . | . . . Retrieved Components . | . . . Parts Scanalyzed . | . . . Part Schematics Acquired . | . . . Parts Damaged . | . . . Bothacking | -11 -10 -9 ------------ Run | Yrd Mat Mat Used RIF Installer . | . . . Robots Hacked . | . . . Non-combat . | . . . Combat . | . . . Robot Hacks Applied . | . . . Relay Couplers Released . | . . . Fabnet Peak Effective % . | . . . Robots Rewired . | . . . Allies Hacked . | . . . Hacks Repelled . | . . . Allies | -11 -10 -9 -------- Run | Yrd Mat Mat Total Allies . | . . . Largest Group . | . . . Highest-Rated Group . | . . . Highest-Rated Ally . | . . . Total Orders . | . . . Ally Attacks . | . . . Total Damage . | . . . Kills . | . . . Allies Corrupted . | . . . Allies Melted . | . . . Intel | -11 -10 -9 ------- Run | Yrd Mat Mat Active Infowar (turns) 1331 | . 617 714 Sensors 544 | . 342 202 Terrain 793 | . 122 671 Structural 636 | . 153 483 Robot Analysis Total . | . . . Derelict Logs Recovered . | . . . Drone Launches . | . . . Drone Recoveries . | . . . Exploration | -11 -10 -9 ------------- Run | Yrd Mat Mat Turns Passed 1719 | 163 788 768 Spaces Moved 984 | 97 485 402 Core 31 | 20 . 11 Treads . | . . . Legs 952 | 77 485 390 Wheels 1 | . . 1 Hover . | . . . Flight . | . . . Fastest Speed 50 | 50 120 115 Average Speed 133 | 126 123 148 Slowest Speed 450 | 200 190 450 Overloaded Moves . | . . . Propulsion Burnouts . | . . . Robots Hopped . | . . . Potential Cave-ins . | . . . Cave-ins Triggered . | . . . Exploration Rate (%) 37 | 6 76 30 Regions Visited 2 Branch Regions . Pre-discovered Areas . | . . . Known Exits Taken . | . . . Unknown Exits Taken 2 | 1 1 . Scrap Searched . | . . . Spaces Dug . | . . . Terrain Destroyed 86 | . . 86 Melee . | . . . Projectile . | . . . AOE 86 | . . 86 Terrain Rammed . | . . . Walls Destroyed . | . . . Machines Disabled . | . . . Actions | -11 -10 -9 --------- Run | Yrd Mat Mat Total 1209 | 119 596 494 Wait 56 | . 41 15 Move 982 | 96 484 402 Hop . | . . . Pick Up 21 | 6 8 7 Fast Attach 14 | 5 6 3 Attach 9 | 1 1 7 Detach 1 | 1 . . Swap 14 | 1 7 6 Drop 15 | . 10 5 Fire 95 | 7 39 49 Melee . | . . . Ram . | . . . Kick 2 | 2 . . Crush . | . . . Escape Stasis . | . . . Rewire . | . . . Trap . | . . . Miscellaneous . | . . . Route ------- -11/Scrapyard -10/Materials (discovered 3 exits: [*Mat x3]) -9/Materials History --------- Turn | Location | Event 24 | -11/Scrapyard | Discovered new exit (range 14) 164 | -11/Scrapyard | Entered Materials 305 | -10/Materials | Build established: Mutant 368 | -10/Materials | Discovered new exit (range 15) 460 | -10/Materials | Repaired Sensor Array 685 | -10/Materials | Discovered new exit (range 13) 812 | -10/Materials | Discovered new exit (range 9) 952 | -10/Materials | Entered another Materials area 952 | -9/Materials | Evolved 2 slots: Propulsion x1, Utility x1 1449 | -9/Materials | Lost 3 parts (2n1w) 1645 | -9/Materials | Core integrity fell below 50% 1703 | -9/Materials | Lost 9 parts (1p3n2u3w) 1714 | -9/Materials | Core integrity fell below 20% 1720 | -9/Materials | Destroyed by G-34 Mercenary with Small Laser Last Messages --------------- 01690_ U-05 Engineer lays Concrete. 01697_ K-01 Serf cleans the Terminal. 01697_ U-05 Engineer lays Concrete. 01698_ W-16 Scout sends out distress signal. 01698_ U-05 Engineer lays Concrete. 01700_ K-01 Serf cleans the Terminal. 01700_ U-05 Engineer lays Concrete. 01702_ U-05 Engineer builds a Wall. 01704_ U-05 Engineer lays Concrete. 01706_ U-05 Engineer builds a Door. 01706_ U-05 Engineer lays Concrete. 01707_ K-01 Serf cleans the Matter Pump. 01709_ U-05 Engineer lays Concrete. 01712_ K-01 Serf cleans the Terminal. 01713_ U-05 Engineer lays Concrete. 01714_ Critical hit (Burn: +37). 01714_ U-05 Engineer builds a Wall. 01718_ Acquired Com. Wheel. 01718_ K-01 Serf cleans the Terminal. 01719_ Imp. Ion Engine destroyed. Map ----- +----------------------------------------------------+ | ?????????????????????????????????????????????????? | | ?????????????????????????????????????????????????? | | ?????????????????????????????????????????????????? | | ?????????????????????????????????????????????????? | | ?????????????????????????????????????????????????? | | ?????????????????????## ???????????????????????? | | ?????????????????????## ???????????????????????? | | ?????????????????????## ???????????????????????? | | ???? ????????????????## # ?????????????????????? | | ??????????#??????????## # ?????????????????????? | | ????????????? ?##### # ?????????????????????? | | ?????????????+###?#####w ##?????????????????????? | | ????? ??????? ? T ### ##?????????????????? | | ???????? ??? ?? ###+##?????????????????? | | ?????? ??? ?? # ?????????????????? | | ??#??????????##### """ # ????????????????????? | | ?????????????##"""k """ # ?? ????????????????? | | ??#??????????##"T g""" # ??? ?????????????????? | | ?#???##########""" + ?????????????????????? | | T#???############# g # ?????????????????????? | | ?????## ###[[ # ??????????? ?????????? | | ?????## ###[[ # ? ? ?????????????? | | ????### ###[ ####?#+####????????????? | | ???#### """ ### a ##### + ?????????????? | | ??#??## """"" ### * =# ### # ?????????????? | | ??##### """"" ### [[ @ # ?????????????? | | ####### """"" ### [[ + ?????????????? | | #### ## " " ### [!g%= # ????"????????? | | ## %=[= # # ?????????????? | | ## #######+######w k # ?????????????? | | ## [ =]! =% =! ### # ## # ?????????????? | | # ]% [ = # #+## ## ##?#????#??????? | | # =] # * # ##?????????????? | | ### ## # ##?????????????? | | # ## # ##?????????????? | | ## # ##?????????????? | | %##*** # ####???????????? | | " " =##*** # !##?#????????? | | " " ##*** # !#??????????? | | " " ## # !#??????????? | | ## # #??????????? | | ## # !#??????????? | | # ## # !##??????????? | | ## ######+### ########??#????? | | ## # ! #???????? | | ### # #???????? | | ### # """ #?????#?? | | ### # #+########## + R" #???????? | | ### ## = # #????# # """ #???????? | | ### ## + """"" ##?### # #???????? | +----------------------------------------------------+ Best States ------------- Heat Dissipation 28 Energy Generation 12 Energy Capacity 265 Matter Stores 300 Matter Capacity 300 Sight Range 16 Robot Scan Range 14 Terrain Scan Range 16 Terrain Scan Density 10 Evasion (%) 55 Item Schematics ----------------- None Robot Schematics ------------------ None Fabricated ------------ Nothing Repaired ---------- Sensor Array | 65% | -10/Materials Studied --------- None Alien Tech Used ----------------- None Achievements -------------- None Challenges ------------ None Game ------ Seed HoverHypertargetingOptics Manual? 0 Play Time 00:26:00 Cumulative 4.4 hours Start 2025.11.20 @ 08:51:36 End 2025.11.20 @ 09:17:22 Sessions 1 Manual Loads 0 Difficulty Rogue Special Mode None Game No. 13 Rogue 12 Adventurer 1 Explorer 0 Win Type - Total 0 Types 0/0/0/0/0/0/0/0/0/0 Lore% 0 Gallery% 7 Achievement% 6 Wizard Run 0 Options --------- Layout 0 ASCII 0 Keyboard 0 Movement Vi Keybinds 1 Fullscreen 1 Font 36/Smallcaps Map View 76x50 Zoom Use 0% Tactical HUD 1 Map Filters NONE Filters NONE Steam 1 RUN: 5ce76aff-4a15-4d62-b4e1-37aff6ec1143